fUST/lending_fUST_20240613
["ID","MTS","AMOUNT","RATE_DAILY","PERIOD"]
[329286540,1718217045788,-500.0,0.00016986,2]
[329286541,1718217045799,-500.0,0.00016986,2]
[329286542,1718217045810,-856.25,0.00016986,2]
[329286543,1718217045821,-663.84,0.00016986,2]
[329286544,1718217045831,-517.23,0.00016986,2]
[329286545,1718217045842,-500.0,0.00016986,2]
[329286546,1718217045853,-500.0,0.00016986,2]
[329286547,1718217045864,-1133.5,0.00016986,2]
[329286548,1718217045875,-500.0,0.00016986,2]
[329286549,1718217045885,-500.0,0.00016986,2]
[329286550,1718217045896,-500.0,0.00016986,2]
[329286551,1718217045907,-500.0,0.00016986,2]
[329286552,1718217045918,-500.0,0.00016986,2]
[329286553,1718217045928,-450.77100078,0.00016986,2]
[329286554,1718217045942,-500.0,0.00016986,4]
[329286555,1718217045952,-517.7,0.00016986,2]
[329286556,1718217045963,-500.0,0.00016986,2]
[329286557,1718217045973,-5518.9,0.00016986,2]
[329286558,1718217045983,-994.21,0.00016986,2]
[329286559,1718217045995,-500.0,0.00016986,2]
[329286560,1718217046006,-668.97,0.00016986,2]
[329286561,1718217046018,-500.0,0.00016986,2]
[329286562,1718217046029,-3300.23,0.00016986,2]
[329286563,1718217046040,-500.0,0.00016986,2]
[329286564,1718217046051,-500.0,0.00016986,2]
[329286565,1718217046062,-873.36,0.00016986,2]
[329286566,1718217046072,-548.3278315,0.00016986,2]
[329286567,1718217046083,-661.98,0.00016986,2]
[329286568,1718217046093,-1071.37,0.00016986,2]
[329286569,1718217046104,-500.0,0.00016986,2]
[329286571,1718217046115,-500.0,0.00016986,2]
[329286572,1718217046126,-500.0,0.00016986,2]
[329286573,1718217046136,-500.0,0.00016986,2]
[329286574,1718217046146,-6760.55,0.00016986,2]
[329286575,1718217046157,-7470.72,0.00016986,2]
[329286576,1718217046169,-500.0,0.00016986,2]
[329286577,1718217046179,-634.00338964,0.00016986,2]
[329286578,1718217046194,-1970.83,0.00016986,2]
[329286579,1718217046206,-2991.13,0.00016986,2]
[329286580,1718217046218,-500.0,0.00016986,2]
[329286581,1718217046230,-500.0,0.00016986,2]
[329286582,1718217046242,-696.89,0.00016986,2]
[329286583,1718217046253,-500.0,0.00016986,2]
[329286584,1718217046264,-718.81,0.00016986,2]
[329286585,1718217046277,-6356.09,0.00016986,2]
[329286586,1718217046288,-978.46,0.00016986,2]
[329286587,1718217046302,-500.0,0.00016986,2]
[329286588,1718217046312,-500.0,0.00016986,2]
[329286589,1718217046326,-564.21518899,0.00016986,2]
[329286590,1718217046339,-500.0,0.00016986,2]
[329286591,1718217046351,-560.5,0.00016986,2]
[329286592,1718217046362,-500.0,0.00016986,2]
[329286593,1718217046373,-500.0,0.00016986,2]
[329286594,1718217046384,-500.0,0.00016986,2]
[329286595,1718217046396,-500.0,0.00016986,2]
[329286596,1718217046408,-861.01,0.00016986,2]
[329286597,1718217046419,-1062.73,0.00016986,2]
[329286598,1718217046433,-500.0,0.00016986,2]
[329286599,1718217046445,-514.87,0.00016986,2]
[329286600,1718217046457,-500.0,0.00016986,2]
[329286601,1718217046472,-1892.82,0.00016986,2]
[329286602,1718217046485,-500.0,0.00016986,2]
[329286603,1718217046499,-500.0,0.00016986,2]
[329286604,1718217046510,-1472.89,0.00016986,2]
[329286605,1718217046522,-500.0,0.00016986,2]
[329286606,1718217046534,-500.0,0.00016986,2]
[329286607,1718217046546,-500.0,0.00016986,2]
[329286608,1718217046557,-760.96,0.00016986,2]
[329286609,1718217046575,-500.0,0.00016986,2]
[329286610,1718217046586,-500.0,0.00016986,2]
[329286611,1718217046598,-656.64,0.00016986,2]
[329286612,1718217046608,-1844.56,0.00016986,2]
[329286613,1718217046621,-500.0,0.00016986,2]
[329286614,1718217046634,-679.68,0.00016986,2]
[329286615,1718217046656,-500.0,0.00016986,2]
[329286616,1718217046667,-500.0,0.00016986,2]
[329286617,1718217046678,-1404.21,0.00016986,2]
[329286618,1718217046695,-587.0,0.00016999,2]
[329286619,1718217046707,-1248.73186427,0.0001716,2]
[329286620,1718217046718,-500.0,0.00017258,2]
[329286621,1718217046731,-500.0,0.00017259,2]
[329286622,1718217046743,-500.0,0.00017259,2]
[329286623,1718217046754,-1212.83,0.00017259,2]
[329286624,1718217046765,-1212.83,0.00017259,2]
[329286625,1718217046777,-500.0,0.0001726,2]
[329286626,1718217046790,-500.0,0.0001726,2]
[329286627,1718217046801,-500.0,0.0001726,2]
[329286628,1718217046813,-500.0,0.0001726,2]
[329286629,1718217046825,-564.9233705,0.0001726,2]
[329286630,1718217046835,-651.69,0.0001726,2]
[329286631,1718217046846,-500.0,0.0001726,2]
[329286632,1718217046857,-605.94,0.0001726,2]
[329286633,1718217046868,-500.0,0.0001726,2]
[329286634,1718217046879,-500.0,0.0001726,2]
[329286635,1718217046890,-500.0,0.0001726,2]
[329286636,1718217046904,-868.34,0.0001726,2]
[329286637,1718217046915,-500.0,0.0001726,2]
[329286638,1718217046926,-500.0,0.0001726,2]
[329286639,1718217046944,-500.0,0.0001726,2]
[329286640,1718217046954,-500.0,0.0001726,2]
[329286641,1718217046965,-500.0,0.0001726,2]
[329286642,1718217046976,-500.0,0.0001726,2]
[329286643,1718217046987,-856.25,0.0001726,2]
[329286644,1718217046998,-663.84,0.0001726,2]
[329286645,1718217047009,-500.0,0.0001726,2]
[329286646,1718217047021,-500.0,0.0001726,2]
[329286647,1718217047034,-1133.5,0.0001726,2]
[329286648,1718217047046,-500.0,0.0001726,2]
[329286649,1718217047063,-500.0,0.0001726,2]
[329286650,1718217047079,-500.0,0.0001726,2]
[329286651,1718217047094,-322.94445496,0.0001726,2]
[329286652,1718217047108,-500.0,0.0001726,2]
[329286653,1718217047120,-500.0,0.0001726,4]
[329286654,1718217047138,-517.7,0.0001726,2]
[329286655,1718217047154,-500.0,0.0001726,2]
[329286656,1718217047166,-5518.9,0.0001726,2]
[329286657,1718217047176,-994.21,0.0001726,2]
[329286658,1718217047193,-500.0,0.0001726,2]
[329286659,1718217047205,-668.97,0.0001726,2]
[329286660,1718217047217,-278.21,0.0001726,2]
[329286661,1718217047229,-273.13391427,0.0001726,2]
[329286662,1718217047256,-3027.09608573,0.0001726,2]
[329286663,1718217047273,-500.0,0.0001726,2]
[329286664,1718217047285,-500.0,0.0001726,2]
[329286665,1718217047296,-873.36,0.0001726,2]
[329286666,1718217047310,-661.98,0.0001726,2]
[329286667,1718217047323,-1071.37,0.0001726,2]
[329286668,1718217047336,-500.0,0.0001726,2]
[329286669,1718217047350,-500.0,0.0001726,2]
[329286670,1718217047361,-500.0,0.0001726,2]
[329286671,1718217047378,-500.0,0.0001726,2]
[329286672,1718217047389,-6760.55,0.0001726,2]
[329286673,1718217047412,-7470.72,0.0001726,2]
[329286674,1718217047424,-1970.83,0.0001726,2]
[329286675,1718217047440,-2387.92245271,0.0001726,2]
[329286676,1718217047470,-603.20754729,0.0001726,2]
[329286677,1718217047485,-500.0,0.0001726,2]
[329286678,1718217047500,-500.0,0.0001726,2]
[329286679,1718217047512,-696.89,0.0001726,2]
[329286680,1718217047524,-500.0,0.0001726,2]
[329286681,1718217047535,-718.81,0.0001726,2]
[329286682,1718217047547,-6356.09,0.0001726,2]
[329286683,1718217047557,-978.46,0.0001726,2]
[329286684,1718217047571,-500.0,0.0001726,2]
[329286685,1718217047582,-509.49989631,0.0001726,2]
[329286686,1718217047592,-500.0,0.0001726,2]
[329286687,1718217047603,-560.5,0.0001726,2]
[329286688,1718217047614,-500.0,0.0001726,2]
[329286689,1718217047624,-500.0,0.0001726,2]
[329286690,1718217047635,-500.0,0.0001726,2]
[329286691,1718217047662,-861.01,0.0001726,2]
[329286692,1718217047674,-1062.73,0.0001726,2]
[329286693,1718217047688,-500.0,0.0001726,2]
[329286694,1718217047698,-514.87,0.0001726,2]
[329286695,1718217047709,-500.0,0.0001726,2]
[329286696,1718217047720,-1892.82,0.0001726,2]
[329286697,1718217047733,-500.0,0.0001726,2]
[329286698,1718217047745,-500.0,0.0001726,2]
[329286699,1718217047758,-1472.89,0.0001726,2]
[329286700,1718217047772,-500.0,0.0001726,2]
[329286701,1718217047785,-500.0,0.0001726,2]
[329286702,1718217047799,-500.0,0.0001726,2]
[329286703,1718217047810,-760.96,0.0001726,2]
[329286704,1718217047822,-500.0,0.0001726,2]
[329286705,1718217047834,-500.0,0.0001726,2]
[329286706,1718217047845,-656.64,0.0001726,2]
[329286707,1718217047857,-1844.56,0.0001726,2]
[329286708,1718217047870,-500.0,0.0001726,2]
[329286709,1718217047882,-500.0,0.0001726,2]
[329286710,1718217047902,-679.68,0.0001726,2]
[329286711,1718217047916,-343.81,0.0001726,2]
[329286712,1718217047929,-1404.21,0.0001726,2]
[329286713,1718217047944,-751.62,0.00017533,2]
[329286714,1718217047955,-1212.83,0.00017533,2]
[329286715,1718217047974,-1212.83,0.00017533,2]
[329286716,1718217047987,-500.0,0.00017534,2]
[329286717,1718217048002,-500.0,0.00017534,2]
[329286718,1718217048020,-500.0,0.00017534,2]
[329286719,1718217048033,-500.0,0.00017534,2]
[329286720,1718217048048,-651.69,0.00017534,2]
[329286721,1718217048063,-500.0,0.00017534,2]
[329286722,1718217048075,-605.94,0.00017534,2]
[329286723,1718217048090,-198.35,0.00017534,2]
[329286724,1718217048100,-293.50291165,0.00017534,2]
[329286725,1718217048111,-499.51,0.00017534,2]
[329286726,1718217048124,-868.34,0.00017534,2]
[329286727,1718217048137,-500.0,0.00017534,2]
[329286728,1718217048151,-500.0,0.00017534,2]
[329286730,1718217048161,-500.0,0.00017534,2]
[329286732,1718217048173,-153.88,0.00017534,2]
[329286734,1718217048188,-346.05,0.00017534,2]
[329286736,1718217048202,-500.0,0.00017534,2]
[329286738,1718217048214,-856.25,0.00017534,2]
[329286740,1718217048225,-663.84,0.00017534,2]
[329286742,1718217048236,-500.0,0.00017534,2]
[329286743,1718217048247,-500.0,0.00017534,2]
[329286744,1718217048258,-1133.5,0.00017534,2]
[329286745,1718217048269,-500.0,0.00017534,2]
[329286746,1718217048281,-500.0,0.00017534,2]
[329286747,1718217048293,-500.0,0.00017534,2]
[329286750,1718217048306,-500.0,0.00017534,2]
[329286752,1718217048318,-500.0,0.00017534,4]
[329286754,1718217048329,-517.7,0.00017534,2]
[329286756,1718217048340,-320.99,0.00017534,2]
[329286758,1718217048354,-5518.9,0.00017534,2]
[329286760,1718217048365,-994.21,0.00017534,2]
[329286762,1718217048377,-500.0,0.00017534,2]
[329286763,1718217048389,-668.97,0.00017534,2]
[329286765,1718217048402,-3300.23,0.00017534,2]
[329286767,1718217048413,-210.33026951,0.00017534,2]
[329286768,1718217048425,-500.0,0.00017534,2]
[329286769,1718217048439,-873.36,0.00017534,2]
[329286770,1718217048450,-661.98,0.00017534,2]
[329286772,1718217048462,-1071.37,0.00017534,2]
[329286774,1718217048473,-500.0,0.00017534,2]
[329286776,1718217048490,-500.0,0.00017534,2]
[329286778,1718217048499,-500.0,0.00017534,2]
[329286780,1718217048510,-500.0,0.00017534,2]
[329286782,1718217048521,-6760.55,0.00017534,2]
[329286784,1718217048532,-7470.72,0.00017534,2]
[329286786,1718217048543,-1970.83,0.00017534,2]
[329286788,1718217048555,-500.0,0.00017534,2]
[329286790,1718217048566,-2991.13,0.00017534,2]
[329286792,1718217048578,-500.0,0.00017534,2]
[329286794,1718217048589,-500.0,0.00017534,2]
[329286796,1718217048599,-696.89,0.00017534,2]
[329286798,1718217048610,-500.0,0.00017534,2]
[329286802,1718217048654,-718.81,0.00017534,2]
[329286804,1718217048665,-6356.09,0.00017534,2]
[329286806,1718217048676,-978.46,0.00017534,2]
[329286808,1718217048689,-293.95,0.00017534,2]
[329286810,1718217048700,-500.0,0.00017534,2]
[329286812,1718217048713,-560.5,0.00017534,2]
[329286814,1718217048725,-500.0,0.00017534,2]
[329286816,1718217048735,-500.0,0.00017534,2]
[329286818,1718217048749,-500.0,0.00017534,2]
[329286820,1718217048761,-861.01,0.00017534,2]
[329286822,1718217048773,-1062.73,0.00017534,2]
[329286824,1718217048784,-500.0,0.00017534,2]
[329286826,1718217048795,-514.87,0.00017534,2]
[329286828,1718217048806,-464.43241486,0.00017534,2]
[329286830,1718217048819,-1892.82,0.00017534,2]
[329286832,1718217048831,-500.0,0.00017534,2]
[329286834,1718217048843,-500.0,0.00017534,2]
[329286836,1718217048854,-1472.89,0.00017534,2]
[329286838,1718217048865,-500.0,0.00017534,2]
[329286840,1718217048876,-500.0,0.00017534,2]
[329286841,1718217048886,-500.0,0.00017534,2]
[329286843,1718217048897,-760.96,0.00017534,2]
[329286845,1718217048908,-500.0,0.00017534,2]
[329286847,1718217048919,-500.0,0.00017534,2]
[329286849,1718217048930,-656.64,0.00017534,2]
[329286851,1718217048943,-1844.56,0.00017534,2]
[329286853,1718217048954,-500.0,0.00017534,2]
[329286855,1718217048965,-500.0,0.00017534,2]
[329286857,1718217048976,-679.68,0.00017534,2]
[329286859,1718217048986,-1404.21,0.00017534,2]
[329286861,1718217048998,-751.62,0.00017807,2]
[329286863,1718217049011,-1212.83,0.00017807,2]
[329286865,1718217049023,-1212.83,0.00017807,2]
[329286867,1718217049035,-310.79781902,0.00017808,2]
[329286869,1718217049046,-500.0,0.00017808,2]
[329286871,1718217049057,-500.0,0.00017808,2]
[329286873,1718217049068,-500.0,0.00017808,2]
[329286875,1718217049079,-651.69,0.00017808,2]
[329286877,1718217049090,-500.0,0.00017808,2]
[329286879,1718217049101,-605.94,0.00017808,2]
[329286881,1718217049112,-868.34,0.00017808,2]
[329286883,1718217049124,-329.62,0.00017808,2]
[329286885,1718217049136,-500.0,0.00017808,2]
[329286887,1718217049146,-500.0,0.00017808,2]
[329286889,1718217049159,-500.0,0.00017808,2]
[329286891,1718217049170,-856.25,0.00017808,2]
[329286893,1718217049181,-663.84,0.00017808,2]
[329286895,1718217049195,-220.89,0.00017808,2]
[329286897,1718217049206,-500.0,0.00017808,2]
[329286899,1718217049218,-1133.5,0.00017808,2]
[329286901,1718217049231,-500.0,0.00017808,2]
[329286903,1718217049242,-500.0,0.00017808,2]
[329286905,1718217049252,-500.0,0.00017808,2]
[329286907,1718217049264,-500.0,0.00017808,2]
[329286909,1718217049275,-500.0,0.00017808,4]
[329286911,1718217049286,-517.7,0.00017808,2]
[329286913,1718217049297,-5518.9,0.00017808,2]
[329286915,1718217049308,-994.21,0.00017808,2]
[329286917,1718217049319,-500.0,0.00017808,2]
[329286919,1718217049332,-668.97,0.00017808,2]
[329286921,1718217049342,-3300.23,0.00017808,2]
[329286923,1718217049355,-500.0,0.00017808,2]
[329286925,1718217049366,-873.36,0.00017808,2]
[329286927,1718217049377,-661.98,0.00017808,2]
[329286929,1718217049388,-1071.37,0.00017808,2]
[329286931,1718217049399,-500.0,0.00017808,2]
[329286933,1718217049410,-500.0,0.00017808,2]
[329286935,1718217049421,-500.0,0.00017808,2]
[329286937,1718217049435,-500.0,0.00017808,2]
[329286939,1718217049447,-6760.55,0.00017808,2]
[329286941,1718217049458,-7470.72,0.00017808,2]
[329286942,1718217049468,-1970.83,0.00017808,2]
[329286943,1718217049480,-500.0,0.00017808,2]
[329286944,1718217049495,-2991.13,0.00017808,2]
[329286945,1718217049507,-500.0,0.00017808,2]
[329286946,1718217049518,-696.89,0.00017808,2]
[329286947,1718217049531,-500.0,0.00017808,2]
[329286948,1718217049542,-718.81,0.00017808,2]
[329286949,1718217049554,-6356.09,0.00017808,2]
[329286950,1718217049565,-978.46,0.00017808,2]
[329286951,1718217049576,-500.0,0.00017808,2]
[329286952,1718217049587,-560.5,0.00017808,2]
[329286953,1718217049598,-500.0,0.00017808,2]
[329286954,1718217049609,-500.0,0.00017808,2]
[329286956,1718217049620,-500.0,0.00017808,2]
[329286958,1718217049632,-861.01,0.00017808,2]
[329286960,1718217049657,-1062.73,0.00017808,2]
[329286961,1718217049668,-500.0,0.00017808,2]
[329286964,1718217049679,-514.87,0.00017808,2]
[329286966,1718217049696,-1892.82,0.00017808,2]
[329286968,1718217049707,-500.0,0.00017808,2]
[329286970,1718217049718,-500.0,0.00017808,2]
[329286972,1718217049730,-1472.89,0.00017808,2]
[329286974,1718217049741,-500.0,0.00017808,2]
[329286976,1718217049752,-510.30017065,0.00017808,2]
[329286978,1718217049763,-500.0,0.00017808,2]
[329286980,1718217049774,-760.96,0.00017808,2]
[329286983,1718217049785,-500.0,0.00017808,2]
[329286986,1718217049797,-500.0,0.00017808,2]
[329286988,1718217049808,-656.64,0.00017808,2]
[329286990,1718217049819,-1844.56,0.00017808,2]
[329286992,1718217049830,-527.37,0.00017808,2]
[329286994,1718217049841,-500.0,0.00017808,2]
[329286996,1718217049852,-679.68,0.00017808,2]
[329286998,1718217049863,-151.0,0.00017858,2]
[329287000,1718217049875,-751.62,0.00017981,2]
[329287001,1718217049886,-751.62,0.00017981,2]
[329287004,1718217049899,-1212.83,0.00017981,2]
[329287006,1718217049911,-42762.8245292,0.00017982,2]
[329287008,1718217049923,-1355.61945113,0.00018,2]
[329287010,1718217049938,-2765.44251206,0.00018,2]
[329287012,1718217049950,-476.69963654,0.00018,2]
[329287014,1718217049962,-876.82850055,0.00018,2]
[329287016,1718217049974,-155.00310006,0.00018,2]
[329287018,1718217049985,-155.06838982,0.00018,2]
[329287020,1718217049996,-151.0,0.00018072,2]
[329287022,1718217050007,-285.76830085,0.0001808,2]
[329287024,1718217050019,-692.26255018,0.0001808,2]
[329287026,1718217050031,-524.19655516,0.0001808,2]
[329287028,1718217050042,-520.30892496,0.0001808,2]
[329287030,1718217050053,-232.26809921,0.0001808,2]
[329287032,1718217050064,-1212.83,0.00018081,2]
[329287034,1718217050075,-4929.44810731,0.00018082,13]
[329287036,1718217050086,-500.0,0.00018082,2]
[329287038,1718217050097,-500.0,0.00018082,2]
[329287040,1718217050108,-500.0,0.00018082,2]
[329287042,1718217050118,-651.69,0.00018082,2]
[329287044,1718217050130,-500.0,0.00018082,2]
[329287046,1718217050141,-605.94,0.00018082,2]
[329287048,1718217050152,-868.34,0.00018082,2]
[329287050,1718217050163,-500.0,0.00018082,2]
[329287052,1718217050173,-500.0,0.00018082,2]
[329287054,1718217050188,-500.0,0.00018082,2]
[329287056,1718217050199,-3200.0,0.00018082,2]
[329287058,1718217050210,-3200.0,0.00018082,2]
[329287060,1718217050221,-3200.0,0.00018082,2]
[329287062,1718217050231,-2327.80927491,0.00018082,2]
[329287064,1718217050242,-856.25,0.00018082,2]
[329287066,1718217050253,-663.84,0.00018082,2]
[329287068,1718217050264,-500.0,0.00018082,2]
[329287070,1718217050275,-1133.5,0.00018082,2]
[329287072,1718217050286,-338.04,0.00018082,2]
[329287074,1718217050297,-500.0,0.00018082,2]
[329287076,1718217050308,-500.0,0.00018082,2]
[329287078,1718217050318,-500.0,0.00018082,2]
[329287080,1718217050328,-500.0,0.00018082,4]
[329287082,1718217050339,-517.7,0.00018082,2]
[329287084,1718217050349,-5518.9,0.00018082,2]
[329287085,1718217050360,-994.21,0.00018082,2]
[329287088,1718217050371,-578.85,0.00018082,2]
[329287089,1718217050382,-668.97,0.00018082,2]
[329287091,1718217050393,-3300.23,0.00018082,2]
[329287093,1718217050403,-500.0,0.00018082,2]
[329287095,1718217050414,-873.36,0.00018082,2]
[329287097,1718217050425,-661.98,0.00018082,2]
[329287099,1718217050437,-1071.37,0.00018082,2]
[329287101,1718217050448,-500.0,0.00018082,2]
[329287103,1718217050460,-500.0,0.00018082,2]
[329287105,1718217050470,-500.0,0.00018082,2]
[329287107,1718217050481,-341.9,0.00018082,2]
[329287109,1718217050494,-6760.55,0.00018082,2]
[329287111,1718217050505,-7470.72,0.00018082,2]
[329287113,1718217050516,-1970.83,0.00018082,2]
[329287115,1718217050527,-500.0,0.00018082,2]
[329287117,1718217050538,-2991.13,0.00018082,2]
[329287119,1718217050549,-151.0,0.00018082,2]
[329287121,1718217050559,-500.0,0.00018082,2]
[329287123,1718217050571,-696.89,0.00018082,2]
[329287125,1718217050582,-500.0,0.00018082,2]
[329287127,1718217050593,-718.81,0.00018082,2]
[329287129,1718217050603,-151.0,0.00018082,2]
[329287131,1718217050613,-6356.09,0.00018082,2]
[329287133,1718217050624,-978.46,0.00018082,2]
[329287136,1718217050637,-280.057456,0.00018082,2]
[329287138,1718217050655,-280.057456,0.00018082,2]
[329287140,1718217050666,-560.5,0.00018082,2]
[329287142,1718217050677,-429.74282589,0.00018082,2]
[329287144,1718217050689,-500.0,0.00018082,2]
[329287146,1718217050701,-500.0,0.00018082,2]
[329287148,1718217050712,-198.342731,0.00018082,2]
[329287150,1718217050722,-861.01,0.00018082,2]
[329287152,1718217050733,-1062.73,0.00018082,2]
[329287154,1718217050744,-500.0,0.00018082,2]
[329287156,1718217050755,-514.87,0.00018082,2]
[329287158,1718217050765,-151.0,0.00018082,2]
[329287160,1718217050776,-1892.82,0.00018082,2]
[329287162,1718217050786,-500.0,0.00018082,2]
[329287164,1718217050798,-324.358221,0.00018082,2]
[329287166,1718217050810,-500.0,0.00018082,2]
[329287168,1718217050821,-151.0,0.00018082,2]
[329287170,1718217050831,-324.358221,0.00018082,2]
[329287172,1718217050842,-1472.89,0.00018082,2]
[329287174,1718217050853,-500.0,0.00018082,2]
[329287176,1718217050863,-151.0,0.00018082,2]
[329287178,1718217050874,-500.0,0.00018082,2]
[329287180,1718217050885,-760.96,0.00018082,2]
[329287182,1718217050895,-500.0,0.00018082,2]
[329287184,1718217050906,-151.0,0.00018082,2]
[329287186,1718217050916,-485.33,0.00018082,2]
[329287188,1718217050927,-656.64,0.00018082,2]
[329287190,1718217050940,-1844.56,0.00018082,2]
[329287193,1718217050951,-642.29744872,0.00018082,2]
[329287195,1718217050961,-679.68,0.00018082,2]
[329287197,1718217050971,-751.62,0.00018146,2]
[329287199,1718217050982,-1212.83,0.00018211,2]
[329287201,1718217050994,-151.0,0.00018286,2]
[329287203,1718217051005,-1212.83,0.00018355,2]
[329287205,1718217051015,-500.0,0.00018356,2]
[329287207,1718217051025,-500.0,0.00018356,2]
[329287209,1718217051036,-500.0,0.00018356,2]
[329287211,1718217051046,-651.69,0.00018356,2]
[329287213,1718217051057,-500.0,0.00018356,2]
[329287215,1718217051067,-605.94,0.00018356,2]
[329287217,1718217051077,-868.34,0.00018356,2]
[329287219,1718217051088,-500.0,0.00018356,2]
[329287221,1718217051098,-500.0,0.00018356,2]
[329287223,1718217051109,-500.0,0.00018356,2]
[329287225,1718217051120,-856.25,0.00018356,2]
[329287227,1718217051130,-663.84,0.00018356,2]
[329287229,1718217051141,-392.05857633,0.00018356,2]
[329287231,1718217051151,-1133.5,0.00018356,2]
[329287233,1718217051163,-500.0,0.00018356,2]
[329287235,1718217051174,-500.0,0.00018356,2]
[329287237,1718217051185,-500.0,0.00018356,2]
[329287239,1718217051196,-500.0,0.00018356,4]
[329287241,1718217051206,-517.7,0.00018356,2]
[329287243,1718217051216,-5518.9,0.00018356,2]
[329287245,1718217051227,-994.21,0.00018356,2]
[329287247,1718217051239,-668.97,0.00018356,2]
[329287249,1718217051250,-3300.23,0.00018356,2]
[329287251,1718217051261,-151.0,0.00018356,2]
[329287253,1718217051271,-151.0,0.00018356,2]
[329287255,1718217051282,-500.0,0.00018356,2]
[329287257,1718217051293,-151.0,0.00018356,2]
[329287259,1718217051303,-873.36,0.00018356,2]
[329287261,1718217051314,-151.0,0.00018356,2]
[329287263,1718217051324,-151.0,0.00018356,2]
[329287265,1718217051335,-661.98,0.00018356,2]
[329287267,1718217051346,-1071.37,0.00018356,2]
[329287269,1718217051357,-500.0,0.00018356,2]
[329287271,1718217051368,-151.0,0.00018356,2]
[329287273,1718217051378,-151.0,0.00018356,2]
[329287275,1718217051390,-500.0,0.00018356,2]
[329287277,1718217051400,-500.0,0.00018356,2]
[329287279,1718217051411,-151.0,0.00018356,2]
[329287281,1718217051421,-6760.55,0.00018356,2]
[329287283,1718217051431,-7470.72,0.00018356,2]
[329287286,1718217051444,-1970.83,0.00018356,2]
[329287288,1718217051454,-500.0,0.00018356,2]
[329287290,1718217051464,-2991.13,0.00018356,2]
[329287292,1718217051474,-219.763647,0.00018356,2]
[329287294,1718217051487,-219.763647,0.00018356,2]
[329287295,1718217051498,-540.40178066,0.00018356,2]
[329287297,1718217051510,-151.0,0.00018356,2]
[329287300,1718217051522,-696.89,0.00018356,2]
[329287301,1718217051534,-500.0,0.00018356,2]
[329287304,1718217051546,-718.81,0.00018356,2]
[329287306,1718217051559,-6356.09,0.00018356,2]
[329287308,1718217051570,-978.46,0.00018356,2]
[329287310,1718217051582,-560.5,0.00018356,2]
[329287312,1718217051593,-500.0,0.00018356,2]
[329287314,1718217051604,-216.51511246,0.00018356,2]
[329287316,1718217051615,-861.01,0.00018356,2]
[329287318,1718217051625,-1062.73,0.00018356,2]
[329287320,1718217051636,-500.0,0.00018356,2]
[329287322,1718217051654,-514.87,0.00018356,2]
[329287324,1718217051665,-1892.82,0.00018356,2]
[329287326,1718217051676,-500.0,0.00018356,2]
[329287328,1718217051688,-500.0,0.00018356,2]
[329287330,1718217051698,-1472.89,0.00018356,2]
[329287332,1718217051709,-500.0,0.00018356,2]
[329287334,1718217051720,-277.89649801,0.00018356,2]
[329287336,1718217051730,-760.96,0.00018356,2]